fUST/lending_fUST_20250118
["ID","MTS","AMOUNT","RATE_DAILY","PERIOD"]
[349427415,1737175845734,-500.0,0.00022054,3]
[349427417,1737175845743,-1643.085378,0.00022054,7]
[349427420,1737175845754,-500.0,0.00022054,3]
[349427422,1737175845763,-1643.085378,0.00022054,7]
[349427423,1737175845776,-500.0,0.00022054,3]
[349427425,1737175845786,-500.0,0.00022054,3]
[349427428,1737175845797,-1052.98,0.00022054,3]
[349427430,1737175845806,-500.0,0.00022054,3]
[349427432,1737175845816,-3446.75,0.00022054,3]
[349427434,1737175845825,-500.0,0.00022054,3]
[349427436,1737175845835,-500.0,0.00022054,3]
[349427438,1737175845844,-819.57,0.00022054,3]
[349427440,1737175845854,-9684.6,0.00022054,3]
[349427442,1737175845863,-676.182093,0.00022054,7]
[349427444,1737175845872,-500.0,0.00022054,3]
[349427446,1737175845881,-676.182093,0.00022054,7]
[349427448,1737175845890,-275.70264764,0.00022054,3]
[349427450,1737175845900,-500.0,0.00022054,3]
[349427452,1737175845909,-500.0,0.00022054,3]
[349427454,1737175845919,-500.0,0.00022054,3]
[349427456,1737175845928,-151.0,0.00022054,7]
[349427458,1737175845937,-808.76,0.00022054,3]
[349427460,1737175845946,-151.0,0.00022054,7]
[349427462,1737175845955,-500.0,0.00022054,3]
[349427464,1737175845963,-500.0,0.00022054,3]
[349427466,1737175845972,-879.84,0.00022054,3]
[349427468,1737175845981,-500.0,0.00022054,3]
[349427470,1737175845990,-500.0,0.00022054,3]
[349427480,1737175846082,-151.0,0.00022054,7]
[349427482,1737175846091,-355.24942668,0.00022054,3]
[349427484,1737175846102,-511.234499,0.00022054,7]
[349427486,1737175846111,-511.234499,0.00022054,7]
[349427488,1737175846120,-513.45165049,0.00022054,3]
[349427490,1737175846130,-500.0,0.00022054,3]
[349427492,1737175846138,-500.0,0.00022054,3]
[349427494,1737175846148,-500.0,0.00022054,3]
[349427496,1737175846157,-500.0,0.00022054,3]
[349427498,1737175846167,-500.0,0.00022054,3]
[349427500,1737175846175,-507.56729403,0.00022054,3]
[349427502,1737175846184,-500.0,0.00022054,3]
[349427504,1737175846193,-500.0,0.00022054,3]
[349427506,1737175846202,-506.73216708,0.00022054,3]
[349427508,1737175846211,-151.0,0.00022054,7]
[349427510,1737175846220,-500.0,0.00022054,3]
[349427512,1737175846229,-500.0,0.00022054,3]
[349427514,1737175846238,-500.0,0.00022054,3]
[349427516,1737175846247,-169.518072,0.00022054,7]
[349427519,1737175846256,-169.518072,0.00022054,7]
[349427520,1737175846266,-500.0,0.00022054,3]
[349427522,1737175846277,-500.0,0.00022054,3]
[349427524,1737175846286,-512.55462114,0.00022054,3]
[349427526,1737175846296,-579.28,0.00022054,3]
[349427528,1737175846305,-151.0,0.00022054,7]
[349427531,1737175846315,-506.07833507,0.00022054,3]
[349427533,1737175846324,-500.0,0.00022054,3]
[349427535,1737175846333,-500.0,0.00022054,3]
[349427537,1737175846343,-500.0,0.00022054,3]
[349427539,1737175846352,-500.0,0.00022054,3]
[349427541,1737175846362,-500.0,0.00022054,3]
[349427542,1737175846371,-500.0,0.00022054,3]
[349427544,1737175846380,-500.0,0.00022054,3]
[349427547,1737175846390,-500.0,0.00022054,3]
[349427548,1737175846399,-500.0,0.00022054,3]
[349427551,1737175846408,-1008.041611,0.00022054,7]
[349427552,1737175846417,-500.0,0.00022054,3]
[349427555,1737175846427,-1008.041611,0.00022054,7]
[349427557,1737175846436,-500.0,0.00022054,3]
[349427559,1737175846445,-500.0,0.00022054,3]
[349427560,1737175846454,-1270.27,0.00022054,3]
[349427562,1737175846464,-500.0,0.00022054,3]
[349427565,1737175846473,-500.0,0.00022054,3]
[349427566,1737175846483,-500.0,0.00022054,3]
[349427569,1737175846494,-151.0,0.00022054,7]
[349427570,1737175846503,-500.0,0.00022054,3]
[349427573,1737175846513,-500.0,0.00022054,3]
[349427574,1737175846523,-500.0,0.00022054,3]
[349427576,1737175846532,-1276.4,0.00022054,3]
[349427578,1737175846541,-500.0,0.00022054,3]
[349427580,1737175846550,-2298.27,0.00022054,3]
[349427582,1737175846560,-500.0,0.00022054,3]
[349427584,1737175846569,-500.0,0.00022054,3]
[349427586,1737175846578,-2068.0,0.00022189,2]
[349427588,1737175846587,-536.0,0.00022189,2]
[349427590,1737175846596,-2310.0,0.00022189,2]
[349427592,1737175846605,-500.0,0.00022191,3]
[349427594,1737175846614,-500.0,0.00022191,3]
[349427596,1737175846624,-500.0,0.00022191,3]
[349427598,1737175846633,-500.0,0.00022191,3]
[349427600,1737175846642,-500.0,0.00022191,3]
[349427602,1737175846651,-503.97109054,0.00022191,3]
[349427604,1737175846661,-500.0,0.00022191,3]
[349427606,1737175846670,-500.0,0.00022191,3]
[349427608,1737175846679,-500.0,0.00022191,3]
[349427610,1737175846688,-500.0,0.00022191,3]
[349427612,1737175846697,-563.08,0.00022191,3]
[349427614,1737175846706,-263.894382,0.00022191,7]
[349427616,1737175846716,-263.894382,0.00022191,7]
[349427618,1737175846725,-151.0,0.00022191,7]
[349427620,1737175846734,-500.0,0.00022191,3]
[349427622,1737175846743,-151.0,0.00022191,7]
[349427624,1737175846752,-500.0,0.00022191,3]
[349427626,1737175846761,-500.0,0.00022191,3]
[349427628,1737175846772,-506.6789579,0.00022191,3]
[349427630,1737175846780,-504.53448255,0.00022191,3]
[349427632,1737175846790,-500.0,0.00022191,3]
[349427634,1737175846798,-500.0,0.00022191,3]
[349427635,1737175846808,-151.0,0.00022191,7]
[349427638,1737175846817,-613.32,0.00022191,3]
[349427640,1737175846827,-151.0,0.00022191,7]
[349427642,1737175846836,-151.0,0.00022191,7]
[349427643,1737175846845,-500.0,0.00022191,3]
[349427646,1737175846855,-151.0,0.00022191,7]
[349427647,1737175846864,-500.0,0.00022191,3]
[349427649,1737175846873,-151.0,0.00022191,7]
[349427651,1737175846883,-500.0,0.00022191,3]
[349427654,1737175846892,-390.396434,0.00022191,7]
[349427655,1737175846901,-500.0,0.00022191,3]
[349427657,1737175846911,-390.396434,0.00022191,7]
[349427660,1737175846920,-500.0,0.00022191,3]
[349427661,1737175846930,-500.0,0.00022191,3]
[349427664,1737175846940,-500.0,0.00022191,3]
[349427665,1737175846952,-500.0,0.00022191,3]
[349427668,1737175846962,-322.93815535,0.00022191,3]
[349427669,1737175846974,-500.0,0.00022191,3]
[349427671,1737175846984,-500.0,0.00022191,3]
[349427673,1737175846993,-151.0,0.00022191,7]
[349427675,1737175847002,-500.0,0.00022191,3]
[349427677,1737175847011,-500.0,0.00022191,3]
[349427680,1737175847022,-500.0,0.00022191,3]
[349427682,1737175847038,-151.0,0.00022191,7]
[349427685,1737175847053,-362.14,0.00022191,3]
[349427687,1737175847067,-151.0,0.00022191,7]
[349427690,1737175847080,-500.0,0.00022191,3]
[349427692,1737175847091,-500.0,0.00022191,3]
[349427694,1737175847105,-500.0,0.00022191,3]
[349427696,1737175847118,-500.0,0.00022191,3]
[349427699,1737175847132,-151.0,0.00022191,7]
[349427701,1737175847146,-151.0,0.00022191,7]
[349427704,1737175847158,-435.86,0.00022191,3]
[349427706,1737175847174,-500.0,0.00022191,3]
[349427709,1737175847188,-516.60817944,0.00022191,3]
[349427711,1737175847200,-158.05882,0.00022191,7]
[349427713,1737175847213,-158.05882,0.00022191,7]
[349427716,1737175847225,-500.0,0.00022191,2]
[349427718,1737175847238,-500.0,0.00022191,3]
[349427721,1737175847252,-500.0,0.00022191,3]
[349427723,1737175847264,-500.0,0.00022191,3]
[349427725,1737175847277,-336.16,0.00022191,3]
[349427727,1737175847288,-500.0,0.00022191,3]
[349427730,1737175847300,-151.0,0.00022191,7]
[349427732,1737175847312,-151.0,0.00022191,7]
[349427734,1737175847324,-177.846499,0.00022191,7]
[349427737,1737175847337,-532.6590509,0.00022191,3]
[349427739,1737175847350,-423.14290974,0.00022191,3]
[349427741,1737175847363,-3882.32,0.00022191,3]
[349427744,1737175847377,-500.0,0.00022191,3]
[349427746,1737175847393,-500.0,0.00022191,3]
[349427749,1737175847408,-500.0,0.00022191,3]
[349427751,1737175847420,-500.0,0.00022191,3]
[349427753,1737175847431,-499.12310711,0.00022191,3]
[349427755,1737175847445,-500.0,0.00022191,3]
[349427757,1737175847456,-151.0,0.00022191,7]
[349427760,1737175847469,-500.0,0.00022191,3]
[349427762,1737175847484,-500.0,0.00022191,3]
[349427764,1737175847500,-500.0,0.00022191,3]
[349427767,1737175847510,-3456.046116,0.00022191,7]
[349427769,1737175847523,-801.45,0.00022191,3]
[349427771,1737175847535,-500.0,0.00022191,3]
[349427773,1737175847548,-500.0,0.00022191,3]
[349427775,1737175847560,-3456.046116,0.00022191,7]
[349427778,1737175847571,-500.0,0.00022191,3]
[349427780,1737175847582,-210.57,0.00022191,3]
[349427782,1737175847594,-500.0,0.00022191,3]
[349427784,1737175847605,-152.876548,0.00022191,7]
[349427786,1737175847616,-963.39,0.00022191,3]
[349427788,1737175847627,-500.0,0.00022191,3]
[349427791,1737175847638,-500.0,0.00022191,3]
[349427793,1737175847649,-151.0,0.00022191,7]
[349427795,1737175847660,-500.0,0.00022191,3]
[349427797,1737175847670,-151.0,0.00022191,7]
[349427799,1737175847681,-192.518241,0.00022191,7]
[349427801,1737175847692,-506.33560681,0.00022191,3]
[349427804,1737175847703,-647.9,0.00022191,3]
[349427806,1737175847715,-192.518241,0.00022191,7]
[349427808,1737175847726,-500.0,0.00022191,3]
[349427810,1737175847737,-500.0,0.00022191,3]
[349427813,1737175847749,-1643.085378,0.00022191,7]
[349427815,1737175847759,-500.0,0.00022191,3]
[349427817,1737175847771,-1643.085378,0.00022191,7]
[349427819,1737175847782,-500.0,0.00022191,3]
[349427821,1737175847794,-1052.98,0.00022191,3]
[349427823,1737175847806,-3446.75,0.00022191,3]
[349427826,1737175847817,-500.0,0.00022191,3]
[349427828,1737175847827,-500.0,0.00022191,3]
[349427830,1737175847839,-9684.6,0.00022191,3]
[349427832,1737175847850,-819.57,0.00022191,3]
[349427835,1737175847861,-676.182093,0.00022191,7]
[349427837,1737175847873,-500.0,0.00022191,3]
[349427839,1737175847884,-676.182093,0.00022191,7]
[349427841,1737175847895,-500.0,0.00022191,3]
[349427844,1737175847906,-151.0,0.00022191,7]
[349427846,1737175847917,-808.76,0.00022191,3]
[349427848,1737175847928,-151.0,0.00022191,7]
[349427850,1737175847940,-500.0,0.00022191,3]
[349427853,1737175847951,-500.0,0.00022191,3]
[349427855,1737175847962,-879.84,0.00022191,3]
[349427857,1737175847973,-500.0,0.00022191,3]
[349427859,1737175847984,-500.0,0.00022191,3]
[349427861,1737175847995,-151.0,0.00022191,7]
[349427864,1737175848006,-511.234499,0.00022191,7]
[349427866,1737175848017,-511.234499,0.00022191,7]
[349427868,1737175848032,-500.0,0.00022191,3]
[349427870,1737175848044,-500.0,0.00022191,3]
[349427872,1737175848056,-500.0,0.00022191,3]
[349427875,1737175848067,-370.22376219,0.00022191,3]
[349427877,1737175848078,-500.0,0.00022191,3]
[349427879,1737175848090,-500.0,0.00022191,3]
[349427881,1737175848102,-151.0,0.00022191,7]
[349427884,1737175848113,-500.0,0.00022191,3]
[349427886,1737175848126,-500.0,0.00022191,3]
[349427888,1737175848138,-500.0,0.00022191,3]
[349427890,1737175848150,-169.518072,0.00022191,7]
[349427892,1737175848162,-169.518072,0.00022191,7]
[349427895,1737175848174,-500.0,0.00022191,3]
[349427897,1737175848186,-510.33035969,0.00022191,3]
[349427899,1737175848197,-509.64064778,0.00022191,3]
[349427901,1737175848209,-500.0,0.00022191,3]
[349427904,1737175848220,-500.0,0.00022191,3]
[349427905,1737175848359,-500.0,0.00022191,3]
[349427907,1737175848373,-500.0,0.00022191,3]
[349427908,1737175848383,-500.0,0.00022191,3]
[349427910,1737175848393,-1008.041611,0.00022191,7]
[349427912,1737175848402,-518.56634475,0.00022191,3]
[349427914,1737175848413,-1008.041611,0.00022191,7]
[349427916,1737175848422,-500.0,0.00022191,3]
[349427918,1737175848432,-1270.27,0.00022191,3]
[349427920,1737175848442,-500.0,0.00022191,3]
[349427922,1737175848452,-500.0,0.00022191,3]
[349427924,1737175848461,-151.0,0.00022191,7]
[349427926,1737175848471,-500.0,0.00022191,3]
[349427928,1737175848481,-500.0,0.00022191,3]
[349427930,1737175848492,-1276.4,0.00022191,3]
[349427932,1737175848502,-500.0,0.00022191,3]
[349427934,1737175848512,-2298.27,0.00022191,3]
[349427936,1737175848523,-500.0,0.00022191,3]
[349427938,1737175848533,-396.25,0.000222,2]
[349427940,1737175848543,-151.0,0.000222,2]
[349427942,1737175848552,-622.918212,0.000222,7]
[349427944,1737175848561,-622.918212,0.000222,7]
[349427946,1737175848572,-339.997652,0.000222,7]
[349427948,1737175848581,-339.997652,0.000222,7]
[349427950,1737175848590,-500.0000018,0.000223,2]
[349427952,1737175848599,-509.89,0.00022328,3]
[349427954,1737175848609,-500.0,0.00022328,3]
[349427956,1737175848619,-500.0,0.00022328,3]
[349427958,1737175848629,-500.0,0.00022328,3]
[349427960,1737175848639,-500.0,0.00022328,3]
[349427962,1737175848648,-500.0,0.00022328,3]
[349427964,1737175848657,-500.0,0.00022328,3]
[349427966,1737175848666,-523.05,0.00022328,3]
[349427968,1737175848676,-500.0,0.00022328,3]
[349427970,1737175848685,-500.0,0.00022328,3]
[349427972,1737175848695,-298.71521088,0.00022328,3]
[349427974,1737175848707,-500.0,0.00022328,3]
[349427976,1737175848716,-578.2605212,0.00022328,3]
[349427978,1737175848726,-500.0,0.00022328,3]
[349427980,1737175848735,-500.0,0.00022328,3]
[349427982,1737175848745,-500.0,0.00022328,3]
[349427984,1737175848754,-500.0,0.00022328,3]
[349427986,1737175848764,-570.16576858,0.00022328,3]
[349427988,1737175848773,-500.0,0.00022328,3]
[349427990,1737175848783,-500.0,0.00022328,3]
[349427992,1737175848792,-500.0,0.00022328,3]
[349427994,1737175848801,-500.0,0.00022328,3]
[349427996,1737175848811,-248.724101,0.00022328,7]
[349427998,1737175848820,-500.0,0.00022328,3]
[349428000,1737175848829,-500.0,0.00022328,3]
[349428002,1737175848838,-500.0,0.00022328,3]
[349428004,1737175848847,-500.0,0.00022328,3]
[349428006,1737175848856,-500.0,0.00022328,3]
[349428008,1737175848866,-500.0,0.00022328,3]
[349428010,1737175848875,-500.0,0.00022328,3]
[349428012,1737175848884,-500.0,0.00022328,3]
[349428014,1737175848894,-500.0,0.00022328,2]
[349428016,1737175848903,-500.0,0.00022328,3]
[349428018,1737175848912,-506.22006451,0.00022328,3]
[349428020,1737175848921,-510.87725996,0.00022328,3]
[349428022,1737175848930,-159.02967885,0.00022328,3]
[349428024,1737175848940,-151.0,0.00022328,7]
[349428026,1737175848949,-151.0,0.00022328,7]
[349428028,1737175848959,-3882.32,0.00022328,3]
[349428030,1737175848968,-500.0,0.00022328,3]
[349428032,1737175848978,-500.0,0.00022328,3]
[349428034,1737175848989,-500.0,0.00022328,3]
[349428036,1737175849001,-500.0,0.00022328,3]
[349428038,1737175849015,-500.0,0.00022328,3]
[349428040,1737175849026,-500.0,0.00022328,3]
[349428042,1737175849035,-151.0,0.00022328,7]
[349428044,1737175849045,-500.0,0.00022328,3]
[349428046,1737175849055,-500.0,0.00022328,3]
[349428048,1737175849064,-3456.046116,0.00022328,7]
[349428050,1737175849073,-801.45,0.00022328,3]
[349428052,1737175849082,-500.0,0.00022328,3]
[349428054,1737175849091,-3456.046116,0.00022328,7]
[349428056,1737175849101,-173.57,0.00022328,3]
[349428058,1737175849110,-963.39,0.00022328,3]
[349428060,1737175849119,-500.0,0.00022328,3]
[349428062,1737175849128,-500.0,0.00022328,3]
[349428064,1737175849138,-192.518241,0.00022328,7]
[349428065,1737175849149,-192.518241,0.00022328,7]
[349428068,1737175849159,-500.0,0.00022328,3]
[349428070,1737175849168,-501.80842288,0.00022328,3]
[349428071,1737175849177,-500.0,0.00022328,3]
[349428073,1737175849187,-500.0,0.00022328,3]
[349428076,1737175849196,-1052.98,0.00022328,3]
[349428077,1737175849206,-3446.75,0.00022328,3]
[349428079,1737175849215,-500.0,0.00022328,3]
[349428081,1737175849224,-819.57,0.00022328,3]
[349428083,1737175849234,-9684.6,0.00022328,3]
[349428086,1737175849244,-500.0,0.00022328,3]
[349428087,1737175849254,-500.0,0.00022328,3]
[349428090,1737175849263,-808.76,0.00022328,3]
[349428091,1737175849275,-151.0,0.00022328,7]
[349428094,1737175849285,-500.0,0.00022328,3]
[349428095,1737175849294,-879.84,0.00022328,3]
[349428098,1737175849304,-500.0,0.00022328,3]
[349428100,1737175849314,-500.0,0.00022328,3]
[349428102,1737175849323,-511.234499,0.00022328,7]
[349428104,1737175849332,-511.234499,0.00022328,7]
[349428106,1737175849342,-500.0,0.00022328,3]
[349428108,1737175849351,-500.0,0.00022328,3]
[349428109,1737175849361,-500.0,0.00022328,3]
[349428111,1737175849370,-500.0,0.00022328,3]
[349428114,1737175849379,-500.0,0.00022328,3]
[349428115,1737175849389,-151.0,0.00022328,7]
[349428117,1737175849399,-500.0,0.00022328,3]
[349428120,1737175849408,-500.0,0.00022328,3]
[349428122,1737175849418,-500.0,0.00022328,3]
[349428124,1737175849427,-169.518072,0.00022328,7]
[349428126,1737175849436,-169.518072,0.00022328,7]
[349428128,1737175849446,-395.31835985,0.00022328,3]
[349428130,1737175849455,-500.0,0.00022328,3]
[349428131,1737175849466,-500.0,0.00022328,3]
[349428134,1737175849475,-500.0,0.00022328,3]
[349428136,1737175849487,-1008.041611,0.00022328,7]
[349428137,1737175849496,-1008.041611,0.00022328,7]
[349428139,1737175849506,-500.0,0.00022328,3]
[349428142,1737175849515,-1270.27,0.00022328,3]
[349428144,1737175849524,-500.0,0.00022328,3]
[349428146,1737175849534,-500.0,0.00022328,3]
[349428148,1737175849543,-151.0,0.00022328,7]
[349428150,1737175849553,-500.0,0.00022328,3]
[349428152,1737175849563,-500.0,0.00022328,3]
[349428154,1737175849572,-1276.4,0.00022328,3]
[349428155,1737175849582,-500.0,0.00022328,3]
[349428157,1737175849592,-2298.27,0.00022328,3]
[349428159,1737175849601,-500.0,0.00022328,3]
[349428162,1737175849611,-816.57357159,0.00022341,2]
[349428163,1737175849620,-742.92515372,0.00022365,2]
[349428165,1737175849629,-151.0,0.0002241,7]
[349428168,1737175849639,-151.0,0.0002241,7]
[349428170,1737175849648,-151.0,0.0002241,7]
[349428172,1737175849657,-500.0,0.00022465,3]
[349428174,1737175849667,-509.67136178,0.00022465,3]
[349428175,1737175849677,-500.0,0.00022465,3]
[349428178,1737175849686,-500.0,0.00022465,3]
[349428179,1737175849695,-519.13863435,0.00022465,3]
[349428181,1737175849704,-500.0,0.00022465,3]
[349428183,1737175849713,-500.0,0.00022465,3]
[349428185,1737175849723,-263.894382,0.00022465,7]
[349428187,1737175849732,-263.894382,0.00022465,7]
[349428189,1737175849742,-151.0,0.00022465,7]
[349428191,1737175849751,-500.0,0.00022465,3]
[349428193,1737175849760,-151.0,0.00022465,7]
[349428195,1737175849769,-220.89,0.00022465,3]
[349428197,1737175849780,-151.0,0.00022465,7]
[349428199,1737175849790,-151.0,0.00022465,7]
[349428201,1737175849799,-151.0,0.00022465,7]
[349428203,1737175849808,-500.0,0.00022465,3]
[349428205,1737175849817,-151.0,0.00022465,7]
[349428207,1737175849827,-500.0,0.00022465,3]
[349428209,1737175849836,-151.0,0.00022465,7]
[349428211,1737175849845,-500.0,0.00022465,3]
[349428213,1737175849854,-390.396434,0.00022465,7]
[349428215,1737175849863,-500.0,0.00022465,3]
[349428217,1737175849873,-390.396434,0.00022465,7]
[349428219,1737175849882,-600.00335844,0.00022465,3]
[349428221,1737175849891,-251.81,0.00022465,3]
[349428223,1737175849901,-370.48637178,0.00022465,3]
[349428225,1737175849910,-500.0,0.00022465,3]
[349428227,1737175849919,-500.0,0.00022465,3]
[349428229,1737175849928,-151.0,0.00022465,2]
[349428231,1737175849937,-622.918212,0.00022465,7]
[349428233,1737175849946,-500.0,0.00022465,3]
[349428235,1737175849956,-622.918212,0.00022465,7]
[349428237,1737175849966,-500.0,0.00022465,3]
[349428239,1737175849975,-151.0,0.00022465,7]
[349428241,1737175849984,-151.0,0.00022465,7]
[349428243,1737175849993,-339.997652,0.00022465,7]
[349428245,1737175850003,-339.997652,0.00022465,7]
[349428247,1737175850012,-500.0,0.00022465,3]
[349428249,1737175850021,-500.0,0.00022465,3]
[349428251,1737175850032,-500.0,0.00022465,3]
[349428253,1737175850042,-500.0,0.00022465,3]
[349428255,1737175850051,-151.0,0.00022465,7]
[349428257,1737175850060,-189.051764,0.00022465,7]
[349428259,1737175850069,-500.0,0.00022465,3]
[349428261,1737175850078,-158.05882,0.00022465,7]
[349428263,1737175850087,-158.05882,0.00022465,7]
[349428265,1737175850096,-500.0,0.00022465,2]
[349428267,1737175850105,-500.0,0.00022465,3]
[349428269,1737175850115,-3882.32,0.00022465,3]
[349428271,1737175850124,-500.0,0.00022465,3]
[349428273,1737175850133,-500.0,0.00022465,3]
[349428275,1737175850142,-500.0,0.00022465,3]
[349428277,1737175850152,-500.0,0.00022465,3]
[349428279,1737175850161,-500.0,0.00022465,3]
[349428281,1737175850170,-500.0,0.00022465,3]
[349428284,1737175850180,-500.0,0.00022465,3]
[349428285,1737175850189,-500.0,0.00022465,3]
[349428288,1737175850199,-801.45,0.00022465,3]
[349428290,1737175850208,-500.0,0.00022465,3]
[349428292,1737175850217,-963.39,0.00022465,3]
[349428294,1737175850226,-500.0,0.00022465,3]
[349428296,1737175850236,-151.0,0.00022465,7]
[349428298,1737175850245,-500.0,0.00022465,3]
[349428300,1737175850254,-151.0,0.00022465,7]
[349428302,1737175850263,-500.0,0.00022465,3]
[349428304,1737175850274,-1643.085378,0.00022465,7]
[349428306,1737175850283,-500.0,0.00022465,3]
[349428308,1737175850293,-1643.085378,0.00022465,7]
[349428310,1737175850302,-500.0,0.00022465,3]
[349428312,1737175850312,-1052.98,0.00022465,3]
[349428314,1737175850322,-3446.75,0.00022465,3]
[349428316,1737175850332,-500.0,0.00022465,3]
[349428318,1737175850343,-9684.6,0.00022465,3]
[349428320,1737175850352,-819.57,0.00022465,3]
[349428322,1737175850362,-676.182093,0.00022465,7]
[349428324,1737175850372,-500.0,0.00022465,3]
[349428326,1737175850382,-676.182093,0.00022465,7]
[349428328,1737175850391,-500.0,0.00022465,3]
[349428330,1737175850401,-151.0,0.00022465,7]
[349428332,1737175850411,-808.76,0.00022465,3]
[349428335,1737175850422,-500.0,0.00022465,3]
[349428337,1737175850432,-879.84,0.00022465,3]
[349428339,1737175850442,-215.82,0.00022465,3]
[349428341,1737175850453,-500.0,0.00022465,3]
[349428343,1737175850465,-176.605461,0.00022465,7]
[349428345,1737175850474,-500.0,0.00022465,3]
[349428347,1737175850484,-500.0,0.00022465,3]
[349428349,1737175850497,-500.0,0.00022465,3]
[349428351,1737175850506,-500.0,0.00022465,3]
[349428353,1737175850516,-500.0,0.00022465,3]
[349428355,1737175850526,-151.0,0.00022465,7]
[349428357,1737175850536,-500.0,0.00022465,3]
[349428359,1737175850545,-500.0,0.00022465,3]
[349428361,1737175850555,-500.0,0.00022465,3]
[349428363,1737175850564,-500.0,0.00022465,3]
[349428365,1737175850573,-500.0,0.00022465,3]
[349428367,1737175850583,-1008.041611,0.00022465,7]
[349428369,1737175850593,-1008.041611,0.00022465,7]
[349428371,1737175850602,-516.50842893,0.00022465,3]
[349428373,1737175850611,-1270.27,0.00022465,3]
[349428375,1737175850620,-500.0,0.00022465,3]
[349428377,1737175850630,-500.0,0.00022465,3]
[349428379,1737175850639,-500.0,0.00022465,3]
[349428381,1737175850648,-500.0,0.00022465,3]
[349428383,1737175850658,-1276.4,0.00022465,3]
[349428385,1737175850667,-500.0,0.00022465,3]
[349428387,1737175850676,-2298.27,0.00022465,3]
[349428389,1737175850686,-500.0,0.00022465,3]
[349428392,1737175850696,-29055.06431249,0.000225,2]
[349428394,1737175850705,-158.05882,0.000225,7]
[349428395,1737175850714,-158.05882,0.000225,7]
[349428397,1737175850723,-151.0,0.000225,7]
[349428400,1737175850733,-151.0,0.000225,7]
[349428402,1737175850742,-151.0,0.000225,7]
[349428404,1737175850752,-3456.046116,0.000225,7]
[349428416,1737175850857,-3456.046116,0.000225,7]
[349428418,1737175850867,-151.0,0.000225,7]
[349428420,1737175850876,-151.0,0.000225,7]
[349428422,1737175850885,-192.518241,0.000225,7]
[349428424,1737175850895,-192.518241,0.000225,7]
[349428426,1737175850905,-1643.085378,0.000225,7]
[349428428,1737175850914,-1643.085378,0.000225,7]
[349428430,1737175850923,-676.182093,0.000225,7]
[349428432,1737175850932,-676.182093,0.000225,7]
[349428435,1737175850942,-151.0,0.000225,7]
[349428437,1737175850951,-151.0,0.000225,7]
[349428439,1737175850961,-511.234499,0.000225,7]
[349428441,1737175850970,-511.234499,0.000225,7]
[349428443,1737175850979,-169.518072,0.000225,7]
[349428445,1737175850988,-169.518072,0.000225,7]
[349428447,1737175850998,-742.92515372,0.00022517,2]
[349428449,1737175851007,-1000.0,0.00022521,2]
[349428451,1737175851017,-502.32626281,0.00022521,2]
[349428453,1737175851028,-577.98182138,0.00022521,2]
[349428455,1737175851037,-1000.0,0.00022521,2]
[349428457,1737175851047,-220.36160955,0.00022567,3]
[349428459,1737175851056,-493.481,0.0002258,2]